[Event "Titled Tuesday Blitz December 06 Early 2022"]
[White "Sadhwani, Raunak"]
[Black "Vidit, Santosh Gujrathi"]
[WhiteFideId "35093487"]
[BlackFideId "5029465"]
[WhiteElo "2657"]
[BlackElo "2669"]
[Result "1-0"]
[Round "09"]
[TimeControl "180+1"]
[Date "2022.12.06"]
[WhiteClock "0:00:05"]
[BlackClock "0:00:02"]

1. c4 {[%clk 0:03:00]}  e5 {[%clk 0:02:59]} 2. Nc3 {[%clk 0:02:59]}  Bb4 {[%clk 0:02:58]} 3. Nd5 {[%clk 0:02:53]}  a5 {[%clk 0:02:57]} 4. a3 {[%clk 0:02:46]}  Be7 {[%clk 0:02:56]} 5. Nf3 {[%clk 0:02:46]}  d6 {[%clk 0:02:54]} 6. d4 {[%clk 0:02:42]}  exd4 {[%clk 0:02:48]} 7. Qxd4 {[%clk 0:02:43]}  Nf6 {[%clk 0:02:47]} 8. Nxe7 {[%clk 0:02:42]}  Qxe7 {[%clk 0:02:47]} 9. Bg5 {[%clk 0:02:43]}  Nc6 {[%clk 0:02:45]} 10. Qf4 {[%clk 0:02:30]}  Ne5 {[%clk 0:02:18]} 11. Bxf6 {[%clk 0:02:19]}  Nd3+ {[%clk 0:02:07]} 12. Kd2 {[%clk 0:02:19]}  Nxf4 {[%clk 0:02:06]} 13. Bxe7 {[%clk 0:02:19]}  Kxe7 {[%clk 0:02:07]} 14. e3 {[%clk 0:02:17]}  Ne6 {[%clk 0:02:07]} 15. Nd4 {[%clk 0:02:15]}  a4 {[%clk 0:02:02]} 16. Bd3 {[%clk 0:02:14]}  Nc5 {[%clk 0:02:02]} 17. Bc2 {[%clk 0:02:14]}  g6 {[%clk 0:01:48]} 18. Kc3 {[%clk 0:02:13]}  h5 {[%clk 0:01:45]} 19. f4 {[%clk 0:02:05]}  h4 {[%clk 0:01:42]} 20. e4 {[%clk 0:02:02]}  h3 {[%clk 0:01:31]} 21. g3 {[%clk 0:02:02]}  Bg4 {[%clk 0:01:31]} 22. Rhe1 {[%clk 0:01:49]}  Rhe8 {[%clk 0:01:24]} 23. e5 {[%clk 0:01:43]}  c6 {[%clk 0:01:16]} 24. Bd1 {[%clk 0:01:34]}  Bd7 {[%clk 0:01:08]} 25. Bf3 {[%clk 0:01:22]}  Be6 {[%clk 0:00:20]} 26. Rad1 {[%clk 0:01:17]}  d5 {[%clk 0:00:13]} 27. g4 {[%clk 0:00:28]}  dxc4 {[%clk 0:00:12]} 28. f5 {[%clk 0:00:29]}  gxf5 {[%clk 0:00:11]} 29. gxf5 {[%clk 0:00:27]}  Bd5 {[%clk 0:00:11]} 30. Bxd5 {[%clk 0:00:27]}  cxd5 {[%clk 0:00:12]} 31. Nb5 {[%clk 0:00:28]}  Nd3 {[%clk 0:00:09]} 32. Re3 {[%clk 0:00:25]}  Rad8 {[%clk 0:00:07]} 33. Kd4 {[%clk 0:00:17]}  Kd7 {[%clk 0:00:05]} 34. Nd6 {[%clk 0:00:13]}  Rg8 {[%clk 0:00:02]} 35. Nxf7 {[%clk 0:00:13]}  Rdf8 {[%clk 0:00:02]} 36. e6+ {[%clk 0:00:13]}  Ke7 {[%clk 0:00:02]} 37. Rf1 {[%clk 0:00:08]}  Rg4+ {[%clk 0:00:02]} 38. Kxd5 {[%clk 0:00:07]}  Kf6 {[%clk 0:00:03]} 39. e7 {[%clk 0:00:06]}  Kxf7 {[%clk 0:00:01]} 40. exf8=Q+ {[%clk 0:00:05]}  Kxf8 {[%clk 0:00:02]} 41. f6 {[%clk 0:00:05]}  Nxb2 {[%clk 0:00:02]} 42. f7 {[%clk 0:00:05]}  Rg5+ {[%clk 0:00:02]} 43. Kd4 {[%clk 0:00:05]} 1-0


[Site "https://www.chess.com"]

[Event "Titled Tuesday Blitz December 06 Early 2022"]
[White "Sadilek, Peter"]
[Black "Bazarov, Konstantin"]
[WhiteFideId "1616439"]
[BlackFideId "4137000"]
[WhiteElo "2227"]
[BlackElo "2228"]
[Result "1/2-1/2"]
[Round "09"]
[TimeControl "180+1"]
[Date "2022.12.07"]
[WhiteClock "0:00:07"]
[BlackClock "0:00:19"]

1. d4 {[%clk 0:03:00]}  Nf6 {[%clk 0:02:58]} 2. Nf3 {[%clk 0:03:01]}  b6 {[%clk 0:02:59]} 3. g3 {[%clk 0:03:01]}  Bb7 {[%clk 0:02:59]} 4. Bg2 {[%clk 0:03:02]}  g6 {[%clk 0:02:59]} 5. O-O {[%clk 0:03:02]}  Bg7 {[%clk 0:02:59]} 6. c4 {[%clk 0:03:02]}  e6 {[%clk 0:03:00]} 7. Nc3 {[%clk 0:02:49]}  Ne4 {[%clk 0:03:00]} 8. Nxe4 {[%clk 0:02:50]}  Bxe4 {[%clk 0:02:59]} 9. Bg5 {[%clk 0:02:50]}  Qc8 {[%clk 0:02:52]} 10. Qd2 {[%clk 0:02:11]}  d6 {[%clk 0:02:40]} 11. c5 {[%clk 0:01:54]}  bxc5 {[%clk 0:02:23]} 12. dxc5 {[%clk 0:01:54]}  d5 {[%clk 0:02:22]} 13. Bh6 {[%clk 0:01:46]}  O-O {[%clk 0:02:16]} 14. h4 {[%clk 0:01:43]}  Nd7 {[%clk 0:02:11]} 15. h5 {[%clk 0:01:39]}  Qd8 {[%clk 0:02:06]} 16. Bxg7 {[%clk 0:01:39]}  Kxg7 {[%clk 0:02:05]} 17. h6+ {[%clk 0:01:37]}  Kg8 {[%clk 0:02:04]} 18. Qc3 {[%clk 0:01:08]}  Qf6 {[%clk 0:02:00]} 19. Qxf6 {[%clk 0:01:01]}  Nxf6 {[%clk 0:01:58]} 20. Ne5 {[%clk 0:01:02]}  Bxg2 {[%clk 0:01:50]} 21. Kxg2 {[%clk 0:01:03]}  Rfb8 {[%clk 0:01:47]} 22. b3 {[%clk 0:01:03]}  a5 {[%clk 0:01:41]} 23. Nc6 {[%clk 0:00:49]}  Rb5 {[%clk 0:01:37]} 24. Rfc1 {[%clk 0:00:47]}  Kf8 {[%clk 0:01:30]} 25. Nd4 {[%clk 0:00:39]}  Rb4 {[%clk 0:01:27]} 26. Nc6 {[%clk 0:00:35]}  Rb7 {[%clk 0:01:26]} 27. Ne5 {[%clk 0:00:33]}  a4 {[%clk 0:01:17]} 28. bxa4 {[%clk 0:00:29]}  Rxa4 {[%clk 0:01:16]} 29. Rab1 {[%clk 0:00:29]}  Rab4 {[%clk 0:01:05]} 30. Rxb4 {[%clk 0:00:27]}  Rxb4 {[%clk 0:01:05]} 31. Rc2 {[%clk 0:00:21]}  Ke8 {[%clk 0:00:44]} 32. f3 {[%clk 0:00:21]}  Nd7 {[%clk 0:00:40]} 33. Nd3 {[%clk 0:00:19]}  Rb8 {[%clk 0:00:37]} 34. g4 {[%clk 0:00:16]}  f6 {[%clk 0:00:36]} 35. Kg3 {[%clk 0:00:16]}  c6 {[%clk 0:00:33]} 36. f4 {[%clk 0:00:16]}  Ke7 {[%clk 0:00:32]} 37. g5 {[%clk 0:00:16]}  Ra8 {[%clk 0:00:29]} 38. gxf6+ {[%clk 0:00:16]}  Nxf6 {[%clk 0:00:28]} 39. Ne5 {[%clk 0:00:16]}  Ne4+ {[%clk 0:00:26]} 40. Kg4 {[%clk 0:00:17]}  Ra6 {[%clk 0:00:25]} 41. a4 {[%clk 0:00:08]}  Nf6+ {[%clk 0:00:24]} 42. Kg5 {[%clk 0:00:08]}  Ne4+ {[%clk 0:00:22]} 43. Kg4 {[%clk 0:00:08]}  Kf6 {[%clk 0:00:20]} 44. Nd7+ {[%clk 0:00:08]}  Ke7 {[%clk 0:00:19]} 45. Ne5 {[%clk 0:00:07]} 1/2-1/2


[Site "https://www.chess.com"]

[Event "Titled Tuesday Blitz December 06 Early 2022"]
[White "Sakun, Volodymyr"]
[Black "Palacio,Igor Da Paz"]
[WhiteFideId "14114062"]
[BlackFideId "2121140"]
[WhiteElo "2319"]
[BlackElo "2126"]
[Result "1-0"]
[Round "09"]
[TimeControl "180+1"]
[Date "2022.12.07"]
[WhiteClock "0:00:26"]
[BlackClock "0:00:02"]

1. e4 {[%clk 0:03:00]}  c5 {[%clk 0:02:59]} 2. Be2 {[%clk 0:03:00]}  Nf6 {[%clk 0:02:56]} 3. e5 {[%clk 0:02:59]}  Nd5 {[%clk 0:02:55]} 4. Nf3 {[%clk 0:02:59]}  Nc6 {[%clk 0:02:52]} 5. c3 {[%clk 0:02:54]}  d6 {[%clk 0:02:51]} 6. exd6 {[%clk 0:02:48]}  Qxd6 {[%clk 0:02:48]} 7. d4 {[%clk 0:02:48]}  cxd4 {[%clk 0:02:44]} 8. cxd4 {[%clk 0:02:48]}  e5 {[%clk 0:02:44]} 9. dxe5 {[%clk 0:02:44]}  Nxe5 {[%clk 0:02:41]} 10. Bb5+ {[%clk 0:02:33]}  Bd7 {[%clk 0:02:36]} 11. Bxd7+ {[%clk 0:02:32]}  Nxd7 {[%clk 0:02:32]} 12. O-O {[%clk 0:02:21]}  Be7 {[%clk 0:02:27]} 13. Bg5 {[%clk 0:02:18]}  Bxg5 {[%clk 0:02:16]} 14. Nxg5 {[%clk 0:02:19]}  O-O {[%clk 0:02:13]} 15. Nc3 {[%clk 0:02:13]}  N7f6 {[%clk 0:02:08]} 16. Nxd5 {[%clk 0:01:58]}  Qxd5 {[%clk 0:02:07]} 17. Qxd5 {[%clk 0:01:57]}  Nxd5 {[%clk 0:02:07]} 18. Rfd1 {[%clk 0:01:57]}  Nf6 {[%clk 0:02:01]} 19. Rac1 {[%clk 0:01:55]}  Rac8 {[%clk 0:02:00]} 20. Nf3 {[%clk 0:01:53]}  h6 {[%clk 0:01:56]} 21. Nd4 {[%clk 0:01:47]}  Rfd8 {[%clk 0:01:50]} 22. Rxc8 {[%clk 0:01:40]}  Rxc8 {[%clk 0:01:51]} 23. Kf1 {[%clk 0:01:40]}  Rd8 {[%clk 0:01:29]} 24. Ke2 {[%clk 0:01:40]}  Rd5 {[%clk 0:01:25]} 25. f3 {[%clk 0:01:29]}  Kf8 {[%clk 0:01:21]} 26. g4 {[%clk 0:01:25]}  g6 {[%clk 0:01:18]} 27. Ke3 {[%clk 0:01:21]}  h5 {[%clk 0:01:15]} 28. h3 {[%clk 0:01:20]}  hxg4 {[%clk 0:01:13]} 29. hxg4 {[%clk 0:01:20]}  Rd7 {[%clk 0:01:08]} 30. g5 {[%clk 0:01:02]}  Nd5+ {[%clk 0:01:06]} 31. Ke4 {[%clk 0:01:00]}  Ke7 {[%clk 0:00:27]} 32. Rc1 {[%clk 0:00:45]}  a6 {[%clk 0:00:19]} 33. Rc5 {[%clk 0:00:42]}  Nc7 {[%clk 0:00:16]} 34. Re5+ {[%clk 0:00:38]}  Kf8 {[%clk 0:00:12]} 35. f4 {[%clk 0:00:36]}  Re7 {[%clk 0:00:08]} 36. f5 {[%clk 0:00:36]}  gxf5+ {[%clk 0:00:06]} 37. Nxf5 {[%clk 0:00:33]}  Rxe5+ {[%clk 0:00:04]} 38. Kxe5 {[%clk 0:00:33]}  Nb5 {[%clk 0:00:02]} 39. a4 {[%clk 0:00:26]} 1-0


[Site "https://www.chess.com"]

[Event "Titled Tuesday Blitz December 06 Early 2022"]
[White "Samaganova, Aleksandra"]
[Black "Hirneise, Jens"]
[WhiteFideId "13800221"]
[BlackFideId "24614734"]
[WhiteElo "1864"]
[BlackElo "2345"]
[Result "0-1"]
[Round "09"]
[TimeControl "180+1"]
[Date "2022.12.07"]
[WhiteClock "0:00:06"]
[BlackClock "0:00:08"]

1. c4 {[%clk 0:03:00]}  c6 {[%clk 0:02:53]} 2. Nf3 {[%clk 0:03:00]}  Nf6 {[%clk 0:02:52]} 3. e3 {[%clk 0:02:59]}  d5 {[%clk 0:02:51]} 4. Nc3 {[%clk 0:03:00]}  e6 {[%clk 0:02:50]} 5. d4 {[%clk 0:03:00]}  Bd6 {[%clk 0:02:49]} 6. Bd3 {[%clk 0:02:59]}  dxc4 {[%clk 0:02:45]} 7. Bxc4 {[%clk 0:02:59]}  b5 {[%clk 0:02:40]} 8. Bd3 {[%clk 0:02:58]}  b4 {[%clk 0:02:35]} 9. Ne4 {[%clk 0:02:54]}  Nxe4 {[%clk 0:02:30]} 10. Bxe4 {[%clk 0:02:55]}  Qb6 {[%clk 0:02:27]} 11. O-O {[%clk 0:02:47]}  Nd7 {[%clk 0:02:25]} 12. b3 {[%clk 0:02:39]}  Bb7 {[%clk 0:02:17]} 13. Bb2 {[%clk 0:02:37]}  Nf6 {[%clk 0:02:11]} 14. Bd3 {[%clk 0:02:24]}  c5 {[%clk 0:02:11]} 15. dxc5 {[%clk 0:02:16]}  Bxc5 {[%clk 0:02:10]} 16. Nd4 {[%clk 0:02:03]}  O-O {[%clk 0:02:06]} 17. Rc1 {[%clk 0:01:44]}  Rfd8 {[%clk 0:02:01]} 18. Qc2 {[%clk 0:01:38]}  Rac8 {[%clk 0:02:01]} 19. Qb1 {[%clk 0:01:34]}  Qd6 {[%clk 0:01:51]} 20. Be2 {[%clk 0:01:06]}  Ne4 {[%clk 0:01:38]} 21. Rfd1 {[%clk 0:00:54]}  Qe7 {[%clk 0:01:26]} 22. Bf3 {[%clk 0:00:38]}  Ng5 {[%clk 0:01:06]} 23. Bxb7 {[%clk 0:00:34]}  Qxb7 {[%clk 0:01:06]} 24. h3 {[%clk 0:00:24]}  Rd5 {[%clk 0:01:05]} 25. Ne2 {[%clk 0:00:21]}  Rcd8 {[%clk 0:00:43]} 26. Nf4 {[%clk 0:00:20]}  Rxd1+ {[%clk 0:00:36]} 27. Rxd1 {[%clk 0:00:21]}  Rc8 {[%clk 0:00:34]} 28. Qd3 {[%clk 0:00:18]}  h6 {[%clk 0:00:25]} 29. Bd4 {[%clk 0:00:06]}  Rd8 {[%clk 0:00:20]} 30. Qc2 {[%clk 0:00:04]}  Bb6 {[%clk 0:00:18]} 31. Bxb6 {[%clk 0:00:03]}  Qxb6 {[%clk 0:00:17]} 32. Rxd8+ {[%clk 0:00:03]}  Qxd8 {[%clk 0:00:17]} 33. h4 {[%clk 0:00:03]}  Nh7 {[%clk 0:00:17]} 34. Qe2 {[%clk 0:00:02]}  Nf6 {[%clk 0:00:17]} 35. Qc4 {[%clk 0:00:02]}  Ng4 {[%clk 0:00:16]} 36. Qc2 {[%clk 0:00:01]}  Ne5 {[%clk 0:00:13]} 37. Ne2 {[%clk 0:00:01]}  Qxh4 {[%clk 0:00:11]} 38. Nd4 {[%clk 0:00:01]}  Ng4 {[%clk 0:00:11]} 39. Kf1 {[%clk 0:00:02]}  Qh1+ {[%clk 0:00:11]} 40. Ke2 {[%clk 0:00:02]}  Qxg2 {[%clk 0:00:11]} 41. Qc8+ {[%clk 0:00:02]}  Kh7 {[%clk 0:00:11]} 42. Qc2+ {[%clk 0:00:02]}  f5 {[%clk 0:00:12]} 43. Kd3 {[%clk 0:00:02]}  Nxf2+ {[%clk 0:00:11]} 44. Kc4 {[%clk 0:00:02]}  h5 {[%clk 0:00:10]} 45. Nxe6 {[%clk 0:00:01]}  Qc6+ {[%clk 0:00:10]} 46. Kd4 {[%clk 0:00:01]}  Qxc2 {[%clk 0:00:10]} 47. Ng5+ {[%clk 0:00:02]}  Kg6 {[%clk 0:00:10]} 48. Ne6 {[%clk 0:00:02]}  Qe4+ {[%clk 0:00:10]} 49. Kc5 {[%clk 0:00:03]}  Qxe6 {[%clk 0:00:08]} 50. Kxb4 {[%clk 0:00:04]}  Ne4 {[%clk 0:00:08]} 51. Ka3 {[%clk 0:00:05]}  h4 {[%clk 0:00:08]} 52. Kb2 {[%clk 0:00:06]}  h3 {[%clk 0:00:08]} 0-1


[Site "https://www.chess.com"]

[Event "Titled Tuesday Blitz December 06 Early 2022"]
[White "Seletsky, Grigory"]
[Black "Larina, Maria"]
[WhiteFideId "14112191"]
[BlackFideId "24113182"]
[WhiteElo "2492"]
[BlackElo "1848"]
[Result "1-0"]
[Round "09"]
[TimeControl "180+1"]
[Date "2022.12.07"]
[WhiteClock "0:00:39"]
[BlackClock "0:00:11"]

1. e4 {[%clk 0:03:00]}  c6 {[%clk 0:02:58]} 2. d4 {[%clk 0:02:59]}  d5 {[%clk 0:02:58]} 3. Nc3 {[%clk 0:03:00]}  dxe4 {[%clk 0:02:57]} 4. Nxe4 {[%clk 0:03:01]}  Nf6 {[%clk 0:02:56]} 5. Ng3 {[%clk 0:03:01]}  c5 {[%clk 0:02:54]} 6. N1e2 {[%clk 0:02:55]}  Nc6 {[%clk 0:02:44]} 7. c3 {[%clk 0:02:54]}  cxd4 {[%clk 0:02:40]} 8. Nxd4 {[%clk 0:02:52]}  Nxd4 {[%clk 0:02:38]} 9. cxd4 {[%clk 0:02:52]}  e6 {[%clk 0:02:32]} 10. a3 {[%clk 0:02:49]}  Bd6 {[%clk 0:02:30]} 11. Bd3 {[%clk 0:02:45]}  O-O {[%clk 0:02:29]} 12. O-O {[%clk 0:02:43]}  b6 {[%clk 0:02:27]} 13. Qe2 {[%clk 0:02:34]}  Bb7 {[%clk 0:02:26]} 14. Rd1 {[%clk 0:02:33]}  Nd5 {[%clk 0:02:22]} 15. Qe4 {[%clk 0:02:27]}  g6 {[%clk 0:02:10]} 16. Bh6 {[%clk 0:02:24]}  Re8 {[%clk 0:02:08]} 17. Qg4 {[%clk 0:02:25]}  Nf6 {[%clk 0:02:00]} 18. Qh4 {[%clk 0:02:24]}  Be7 {[%clk 0:01:53]} 19. Bb5 {[%clk 0:02:15]}  Nd7 {[%clk 0:01:50]} 20. Qg4 {[%clk 0:02:07]}  a6 {[%clk 0:01:45]} 21. Be2 {[%clk 0:01:55]}  Nf6 {[%clk 0:01:42]} 22. Qf4 {[%clk 0:01:51]}  Nd5 {[%clk 0:01:35]} 23. Qd2 {[%clk 0:01:50]}  Rc8 {[%clk 0:01:32]} 24. Bf3 {[%clk 0:01:46]}  Ba8 {[%clk 0:01:27]} 25. Rac1 {[%clk 0:01:41]}  Qd7 {[%clk 0:01:25]} 26. Bg5 {[%clk 0:01:36]}  f6 {[%clk 0:01:21]} 27. Bh6 {[%clk 0:01:35]}  Rxc1 {[%clk 0:01:20]} 28. Rxc1 {[%clk 0:01:34]}  Rc8 {[%clk 0:01:20]} 29. h4 {[%clk 0:01:34]}  Rxc1+ {[%clk 0:01:01]} 30. Qxc1 {[%clk 0:01:34]}  Qc7 {[%clk 0:00:53]} 31. Qd2 {[%clk 0:01:26]}  Bb7 {[%clk 0:00:49]} 32. Nf1 {[%clk 0:01:23]}  Kf7 {[%clk 0:00:48]} 33. Ne3 {[%clk 0:01:14]}  Nxe3 {[%clk 0:00:48]} 34. Qxe3 {[%clk 0:01:13]}  Bxf3 {[%clk 0:00:47]} 35. Qxf3 {[%clk 0:01:13]}  Qd6 {[%clk 0:00:41]} 36. Qe4 {[%clk 0:01:07]}  Qd5 {[%clk 0:00:35]} 37. f3 {[%clk 0:01:06]}  Bd6 {[%clk 0:00:32]} 38. Kf2 {[%clk 0:01:01]}  Be7 {[%clk 0:00:25]} 39. Qxd5 {[%clk 0:01:00]}  exd5 {[%clk 0:00:26]} 40. g4 {[%clk 0:01:00]}  Ke6 {[%clk 0:00:23]} 41. Kg3 {[%clk 0:00:56]}  b5 {[%clk 0:00:23]} 42. Bd2 {[%clk 0:00:55]}  Bd6+ {[%clk 0:00:23]} 43. f4 {[%clk 0:00:55]}  g5 {[%clk 0:00:21]} 44. hxg5 {[%clk 0:00:53]}  fxg5 {[%clk 0:00:22]} 45. Kf3 {[%clk 0:00:53]}  gxf4 {[%clk 0:00:21]} 46. Bxf4 {[%clk 0:00:53]}  Bxf4 {[%clk 0:00:18]} 47. Kxf4 {[%clk 0:00:53]}  h6 {[%clk 0:00:18]} 48. g5 {[%clk 0:00:40]}  h5 {[%clk 0:00:18]} 49. g6 {[%clk 0:00:40]}  Kf6 {[%clk 0:00:18]} 50. g7 {[%clk 0:00:41]}  Kxg7 {[%clk 0:00:18]} 51. Kg5 {[%clk 0:00:41]}  h4 {[%clk 0:00:17]} 52. Kxh4 {[%clk 0:00:41]}  Kf6 {[%clk 0:00:16]} 53. Kg4 {[%clk 0:00:40]}  a5 {[%clk 0:00:15]} 54. b3 {[%clk 0:00:39]}  b4 {[%clk 0:00:15]} 55. axb4 {[%clk 0:00:37]}  axb4 {[%clk 0:00:16]} 56. Kf4 {[%clk 0:00:37]}  Ke6 {[%clk 0:00:16]} 57. Kg5 {[%clk 0:00:37]}  Ke7 {[%clk 0:00:11]} 58. Kf5 {[%clk 0:00:36]}  Kd6 {[%clk 0:00:11]} 59. Kf6 {[%clk 0:00:37]}  Kd7 {[%clk 0:00:11]} 60. Ke5 {[%clk 0:00:37]}  Kc6 {[%clk 0:00:11]} 61. Ke6 {[%clk 0:00:37]}  Kc7 {[%clk 0:00:11]} 62. Kxd5 {[%clk 0:00:38]}  Kd7 {[%clk 0:00:11]} 63. Kc4 {[%clk 0:00:38]}  Kc6 {[%clk 0:00:11]} 64. Kxb4 {[%clk 0:00:39]} 1-0


[Site "https://www.chess.com"]

[Event "Titled Tuesday Blitz December 06 Early 2022"]
[White "Shuvalov, Evgenij"]
[Black "Buscar, Michael"]
[WhiteFideId "4187237"]
[BlackFideId "2603616"]
[WhiteElo "2049"]
[BlackElo "2010"]
[Result "1-0"]
[Round "09"]
[TimeControl "180+1"]
[Date "2022.12.07"]
[WhiteClock "0:00:18"]
[BlackClock "0:00:01"]

1. d4 {[%clk 0:03:00]}  d5 {[%clk 0:02:58]} 2. c4 {[%clk 0:03:00]}  e6 {[%clk 0:02:58]} 3. Nc3 {[%clk 0:02:59]}  Nf6 {[%clk 0:02:55]} 4. cxd5 {[%clk 0:02:59]}  exd5 {[%clk 0:02:55]} 5. Bg5 {[%clk 0:02:59]}  c6 {[%clk 0:02:53]} 6. e3 {[%clk 0:02:58]}  Na6 {[%clk 0:02:49]} 7. Bxa6 {[%clk 0:02:54]}  bxa6 {[%clk 0:02:50]} 8. Nf3 {[%clk 0:02:44]}  Rb8 {[%clk 0:02:45]} 9. Qc2 {[%clk 0:02:42]}  Qb6 {[%clk 0:02:35]} 10. Bxf6 {[%clk 0:02:30]}  gxf6 {[%clk 0:02:33]} 11. b3 {[%clk 0:02:30]}  Bb4 {[%clk 0:02:19]} 12. O-O {[%clk 0:02:28]}  Rg8 {[%clk 0:02:20]} 13. Qxh7 {[%clk 0:02:14]}  Rg6 {[%clk 0:02:06]} 14. Rac1 {[%clk 0:02:11]}  Bf5 {[%clk 0:01:54]} 15. Qh4 {[%clk 0:01:52]}  Ba3 {[%clk 0:01:36]} 16. Na4 {[%clk 0:01:32]}  Qc7 {[%clk 0:01:19]} 17. Rc3 {[%clk 0:01:26]}  Be4 {[%clk 0:01:15]} 18. Qh3 {[%clk 0:01:16]}  Ke7 {[%clk 0:01:05]} 19. Nh4 {[%clk 0:01:15]}  Rg5 {[%clk 0:00:52]} 20. f3 {[%clk 0:01:10]}  Bh7 {[%clk 0:00:39]} 21. e4 {[%clk 0:01:07]}  Rbg8 {[%clk 0:00:33]} 22. Nc5 {[%clk 0:00:57]}  Bxc5 {[%clk 0:00:20]} 23. Rxc5 {[%clk 0:00:58]}  dxe4 {[%clk 0:00:19]} 24. fxe4 {[%clk 0:00:55]}  Bxe4 {[%clk 0:00:19]} 25. Re1 {[%clk 0:00:50]}  Qf4 {[%clk 0:00:18]} 26. Rxg5 {[%clk 0:00:46]}  Rxg5 {[%clk 0:00:15]} 27. Nf3 {[%clk 0:00:44]}  Rg4 {[%clk 0:00:09]} 28. Kh1 {[%clk 0:00:36]}  Kf8 {[%clk 0:00:09]} 29. Qh8+ {[%clk 0:00:35]}  Rg8 {[%clk 0:00:08]} 30. Qh3 {[%clk 0:00:33]}  Bxf3 {[%clk 0:00:08]} 31. Qxf3 {[%clk 0:00:33]}  Qxd4 {[%clk 0:00:08]} 32. Qxc6 {[%clk 0:00:31]}  Kg7 {[%clk 0:00:04]} 33. Qxa6 {[%clk 0:00:26]}  Rh8 {[%clk 0:00:04]} 34. h3 {[%clk 0:00:25]}  Qf2 {[%clk 0:00:04]} 35. Qe2 {[%clk 0:00:23]}  Qc5 {[%clk 0:00:02]} 36. Qf3 {[%clk 0:00:22]}  Rg8 {[%clk 0:00:01]} 37. Rf1 {[%clk 0:00:21]}  Kf8 {[%clk 0:00:01]} 38. Qxf6 {[%clk 0:00:20]}  Qd5 {[%clk 0:00:02]} 39. Qf3 {[%clk 0:00:19]}  Qe6 {[%clk 0:00:01]} 40. Rf2 {[%clk 0:00:17]}  Rg6 {[%clk 0:00:01]} 41. Re2 {[%clk 0:00:18]} 1-0


[Site "https://www.chess.com"]

[Event "Titled Tuesday Blitz December 06 Early 2022"]
[White "Stijve, Theo"]
[Black "Begunov, Konstantin"]
[WhiteFideId "1331132"]
[BlackFideId "4118510"]
[WhiteElo "2256"]
[BlackElo "2141"]
[Result "1-0"]
[Round "09"]
[TimeControl "180+1"]
[Date "2022.12.07"]
[WhiteClock "0:00:42"]
[BlackClock "0:00:02"]

1. d4 {[%clk 0:03:00]}  d5 {[%clk 0:02:59]} 2. c4 {[%clk 0:03:00]}  c6 {[%clk 0:03:00]} 3. Nc3 {[%clk 0:02:57]}  Nf6 {[%clk 0:03:00]} 4. cxd5 {[%clk 0:02:56]}  cxd5 {[%clk 0:03:01]} 5. Bf4 {[%clk 0:02:56]}  Nc6 {[%clk 0:03:02]} 6. e3 {[%clk 0:02:55]}  a6 {[%clk 0:03:02]} 7. Nf3 {[%clk 0:02:53]}  Bg4 {[%clk 0:03:03]} 8. Bd3 {[%clk 0:02:53]}  e6 {[%clk 0:03:03]} 9. O-O {[%clk 0:02:53]}  Bd6 {[%clk 0:03:03]} 10. Bg3 {[%clk 0:02:52]}  O-O {[%clk 0:03:03]} 11. Rc1 {[%clk 0:02:43]}  Rc8 {[%clk 0:03:03]} 12. Na4 {[%clk 0:02:40]}  Ne4 {[%clk 0:02:55]} 13. Bxd6 {[%clk 0:02:36]}  Qxd6 {[%clk 0:02:50]} 14. Nc5 {[%clk 0:02:27]}  Bxf3 {[%clk 0:02:20]} 15. gxf3 {[%clk 0:02:08]}  Nxc5 {[%clk 0:02:19]} 16. Rxc5 {[%clk 0:02:09]}  Ne7 {[%clk 0:02:12]} 17. Qc2 {[%clk 0:02:06]}  g6 {[%clk 0:02:04]} 18. Rc1 {[%clk 0:02:05]}  Rc6 {[%clk 0:02:02]} 19. b4 {[%clk 0:02:02]}  Rfc8 {[%clk 0:02:01]} 20. a4 {[%clk 0:01:57]}  b6 {[%clk 0:01:44]} 21. Rxc6 {[%clk 0:01:23]}  Rxc6 {[%clk 0:01:45]} 22. Qb2 {[%clk 0:01:23]}  Rxc1+ {[%clk 0:01:34]} 23. Qxc1 {[%clk 0:01:23]}  Qxb4 {[%clk 0:01:34]} 24. Qc7 {[%clk 0:01:23]}  a5 {[%clk 0:01:00]} 25. Bb5 {[%clk 0:01:20]}  Nf5 {[%clk 0:00:48]} 26. Qxb6 {[%clk 0:01:14]}  Nh4 {[%clk 0:00:11]} 27. Qd8+ {[%clk 0:01:11]}  Kg7 {[%clk 0:00:11]} 28. Qxh4 {[%clk 0:01:11]}  e5 {[%clk 0:00:08]} 29. Qg3 {[%clk 0:01:03]}  exd4 {[%clk 0:00:07]} 30. Qe5+ {[%clk 0:01:03]}  Kh6 {[%clk 0:00:07]} 31. Qxd4 {[%clk 0:01:02]}  Qb1+ {[%clk 0:00:07]} 32. Kg2 {[%clk 0:01:02]}  Qf5 {[%clk 0:00:08]} 33. Bc6 {[%clk 0:00:58]}  Qg5+ {[%clk 0:00:06]} 34. Qg4 {[%clk 0:00:58]}  Qe5 {[%clk 0:00:06]} 35. f4 {[%clk 0:00:56]}  Qe4+ {[%clk 0:00:06]} 36. Qf3 {[%clk 0:00:56]}  Qc2 {[%clk 0:00:06]} 37. Bxd5 {[%clk 0:00:56]}  f5 {[%clk 0:00:07]} 38. Bc6 {[%clk 0:00:53]}  Kg7 {[%clk 0:00:05]} 39. Bb5 {[%clk 0:00:54]}  Qb1 {[%clk 0:00:04]} 40. Qa8 {[%clk 0:00:50]}  Kh6 {[%clk 0:00:05]} 41. Qxa5 {[%clk 0:00:47]}  Qe4+ {[%clk 0:00:05]} 42. Kg1 {[%clk 0:00:47]}  Qb1+ {[%clk 0:00:04]} 43. Bf1 {[%clk 0:00:48]}  Qe4 {[%clk 0:00:03]} 44. Qb5 {[%clk 0:00:45]}  Kh5 {[%clk 0:00:03]} 45. a5 {[%clk 0:00:43]}  Kg4 {[%clk 0:00:03]} 46. f3+ {[%clk 0:00:41]}  Qxf3 {[%clk 0:00:02]} 47. Be2 {[%clk 0:00:42]} 1-0


[Site "https://www.chess.com"]